bitfinex-derivatives/quotes_BNBF0:USTF0_20260114
["timestamp","ask_amount","ask_price","bid_price","bid_amount"]
[1768434020469,0.6748309,948.34,946.38,2.61605998]
[1768434020667,0.6748309,948.33,946.38,2.61605998]
[1768434020867,0.6748309,948.32,946.38,2.61605998]
[1768434021070,0.6748309,948.31,946.38,2.61605998]
[1768434021271,0.6748309,948.3,946.38,2.61605998]
[1768434021566,0.6748309,948.29,946.38,2.61605998]
[1768434021770,0.6748309,948.28,946.38,2.61605998]
[1768434021971,0.6748309,948.27,946.36,2.61605998]
[1768434022171,0.6748309,948.26,946.36,2.61605998]
[1768434022368,0.6748309,948.25,946.36,2.61605998]
[1768434022572,0.6748309,948.24,946.36,2.61605998]
[1768434022767,0.6748309,948.23,946.36,2.61605998]
[1768434023069,0.6748309,948.22,946.36,2.61605998]
[1768434023371,0.6748309,948.21,946.36,2.61605998]
[1768434023567,0.6748309,948.2,946.36,2.61605998]
[1768434023773,0.6748309,948.19,946.36,2.61605998]
[1768434023973,0.6748309,948.18,946.36,2.61605998]
[1768434024173,0.6748309,948.17,946.36,2.61605998]
[1768434024470,0.6748309,948.16,946.36,2.61605998]
[1768434024673,0.6748309,948.15,946.37,2.61605998]
[1768434024869,0.6748309,948.14,946.37,2.61605998]
[1768434025069,0.6748309,948.13,946.37,2.61605998]
[1768434025370,0.6748309,948.12,946.37,2.61605998]
[1768434025569,0.6748309,948.11,946.37,2.61605998]
[1768434025775,0.6748309,948.1,946.37,2.61605998]
[1768434026075,0.6748309,948.09,946.28,0.18355205]
[1768434026272,0.6748309,948.08,946.28,0.18355205]
[1768434026475,0.6748309,948.07,946.28,0.18355205]
[1768434026771,0.6748309,948.06,946.28,0.18355205]
[1768434026971,0.6748309,948.05,946.28,0.18355205]
[1768434027175,0.6748309,948.04,946.28,0.18355205]
[1768434027376,0.6748309,948.03,946.28,0.18355205]
[1768434027573,0.6748309,948.02,946.28,0.18355205]
[1768434027876,0.6748309,948.01,946.28,0.18355205]
[1768434028072,0.6748309,948.0,946.28,0.18355205]
[1768434028273,0.6748309,947.99,946.28,0.18355205]
[1768434028476,0.6748309,947.98,946.28,0.18355205]
[1768434028674,0.6748309,947.97,946.28,0.18355205]
[1768434028876,0.6748309,947.96,946.28,0.18355205]
[1768434029080,0.6748309,947.95,946.28,0.18355205]
[1768434029279,0.6748309,947.94,946.28,0.18355205]
[1768434029473,0.6748309,947.93,946.28,0.18355205]
[1768434029775,0.6748309,947.92,946.28,0.18355205]
[1768434029977,2.592,948.38,946.28,0.18355205]
[1768434029978,0.6748309,947.91,946.28,0.18355205]
[1768434030177,0.6748309,947.9,946.28,0.18355205]
[1768434030378,0.6748309,947.89,946.28,0.18355205]
[1768434030578,2.592,948.38,946.28,0.18355205]
[1768434030778,0.6752565,948.37,946.28,0.18355205]
[1768434030974,0.6752565,948.36,946.28,0.18355205]
[1768434031177,0.6752565,948.35,946.28,0.18355205]
[1768434031377,0.6752565,948.34,946.28,0.18355205]
[1768434031676,0.6752565,948.33,946.28,0.18355205]
[1768434031880,0.6752565,948.32,946.28,0.18355205]
[1768434032076,0.6752565,948.31,946.28,0.18355205]
[1768434032378,0.6752565,948.3,946.28,0.18355205]
[1768434032677,0.6752565,948.29,946.28,0.18355205]
[1768434032875,0.6752565,948.28,946.28,0.18355205]
[1768434033179,0.6752565,948.27,946.28,0.18355205]
[1768434033378,0.6752565,948.26,946.28,0.18355205]
[1768434033578,0.6752565,948.25,946.28,0.18355205]
[1768434033780,0.6752565,948.24,946.28,0.18355205]
[1768434033981,0.6752565,948.23,946.28,0.18355205]
[1768434034280,0.6752565,948.22,946.28,0.18355205]
[1768434034476,0.6752565,948.21,946.28,0.18355205]
[1768434034678,0.6752565,948.2,946.28,0.18355205]
[1768434034878,0.6752565,948.19,946.28,0.18355205]
[1768434035081,0.6752565,948.18,946.28,0.18355205]
[1768434035278,0.6752565,948.17,946.28,0.18355205]
[1768434035483,0.6752565,948.16,946.28,0.18355205]
[1768434035683,0.6752565,948.15,946.28,0.18355205]
[1768434035883,0.6752565,948.14,946.28,0.18355205]
[1768434036084,0.6752565,948.13,946.28,0.18355205]
[1768434036284,0.6752565,948.12,946.28,0.18355205]
[1768434036480,0.6752565,948.11,946.28,0.18355205]
[1768434036682,0.6752565,948.1,946.28,0.18355205]
[1768434036980,0.6752565,948.09,946.28,0.18355205]
[1768434037183,0.6752565,948.08,946.28,0.18355205]
[1768434037385,0.6752565,948.07,946.28,0.18355205]
[1768434037684,0.6752565,948.06,946.28,0.18355205]
[1768434037884,0.6752565,948.05,946.28,0.18355205]
[1768434038180,0.6752565,948.04,946.28,0.18355205]
[1768434038480,0.6752565,948.03,946.28,0.18355205]
[1768434038684,0.6752565,948.02,946.28,0.18355205]
[1768434038984,0.6752565,948.01,946.28,0.18355205]
[1768434039182,0.6752565,948.0,946.28,0.18355205]
[1768434039484,0.6752565,947.99,946.28,0.18355205]
[1768434039784,0.6752565,947.98,946.28,0.18355205]
[1768434039980,0.6752565,947.97,946.28,0.18355205]
[1768434040180,0.6752565,947.96,946.28,0.18355205]
[1768434040379,0.6752565,947.95,946.28,0.18355205]
[1768434040684,0.6752565,947.94,946.28,0.18355205]
[1768434040882,0.6752565,947.93,946.28,0.18355205]
[1768434041182,0.6752565,947.92,946.28,0.18355205]
[1768434041385,0.6752565,947.91,946.28,0.18355205]
[1768434041682,0.6752565,947.9,946.28,0.18355205]
[1768434041882,0.6752565,947.89,946.28,0.18355205]
[1768434042083,0.6752565,947.88,946.28,0.18355205]
[1768434042286,0.6752565,947.87,946.28,0.18355205]
[1768434042483,0.6752565,947.86,946.28,0.18355205]
[1768434042683,0.6752565,947.85,946.28,0.18355205]
[1768434042882,0.6752565,947.84,946.28,0.18355205]
[1768434043182,0.6752565,947.83,946.28,0.18355205]
[1768434043384,0.6752565,947.82,946.28,0.18355205]
[1768434043584,0.6752565,947.81,946.28,0.18355205]
[1768434043788,0.6752565,947.8,946.28,0.18355205]
[1768434043984,2.592,948.38,946.28,0.18355205]
[1768434043985,0.6752565,947.79,946.28,0.18355205]
[1768434044187,0.6752565,947.78,946.28,0.18355205]
[1768434044383,0.6752565,947.77,946.28,0.18355205]
[1768434044584,0.6752565,947.76,946.28,0.18355205]
[1768434044785,0.6752565,947.75,946.28,0.18355205]
[1768434044985,0.6752565,947.74,946.28,0.18355205]
[1768434045290,2.592,948.38,946.28,0.18355205]
[1768434045585,0.67432342,948.37,946.28,0.18355205]
[1768434045789,0.67432342,948.36,946.28,0.18355205]
[1768434045985,0.67432342,948.35,946.28,0.18355205]
[1768434046189,0.67432342,948.34,946.28,0.18355205]
[1768434046387,0.67432342,948.33,946.28,0.18355205]
[1768434046586,0.67432342,948.32,946.28,0.18355205]
[1768434046786,0.67432342,948.31,946.28,0.18355205]
[1768434046986,0.67432342,948.3,946.28,0.18355205]
[1768434047187,0.67432342,948.29,946.28,0.18355205]
[1768434047385,0.67432342,948.28,946.28,0.18355205]
[1768434047589,0.67432342,948.27,946.28,0.18355205]
[1768434047788,0.67432342,948.26,946.28,0.18355205]
[1768434048084,0.67432342,948.25,946.28,0.18355205]
[1768434048290,0.67432342,948.24,946.28,0.18355205]
[1768434048486,0.67432342,948.23,946.28,0.18355205]
[1768434048786,0.67432342,948.22,946.28,0.18355205]
[1768434049089,0.67432342,948.21,946.28,0.18355205]
[1768434049290,0.67432342,948.2,946.28,0.18355205]
[1768434049490,0.67432342,948.19,946.28,0.18355205]
[1768434049690,0.67432342,948.18,946.28,0.18355205]
[1768434049887,0.67432342,948.17,946.28,0.18355205]
[1768434050093,0.67432342,948.16,946.28,0.18355205]
[1768434050286,0.67432342,948.15,946.28,0.18355205]
[1768434050487,0.67432342,948.14,946.28,0.18355205]
[1768434050788,0.67432342,948.13,946.28,0.18355205]
[1768434050992,0.67432342,948.12,946.28,0.18355205]
[1768434051192,0.67432342,948.11,946.28,0.18355205]
[1768434051389,0.67432342,948.1,946.28,0.18355205]
[1768434051592,0.67432342,948.09,946.28,0.18355205]
[1768434051791,0.67432342,948.08,946.28,0.18355205]
[1768434051990,0.67432342,948.07,946.28,0.18355205]
[1768434052192,0.67432342,948.06,946.28,0.18355205]
[1768434052389,0.67432342,948.05,946.28,0.18355205]
[1768434052693,0.67432342,948.04,946.28,0.18355205]
[1768434052993,0.67432342,948.03,946.28,0.18355205]
[1768434053290,0.67432342,948.02,946.28,0.18355205]
[1768434053494,0.67432342,948.01,946.28,0.18355205]
[1768434053794,0.67432342,948.0,946.28,0.18355205]
[1768434053989,0.67432342,947.99,946.28,0.18355205]
[1768434054193,0.67432342,947.98,946.28,0.18355205]
[1768434054392,0.67432342,947.97,946.28,0.18355205]
[1768434054590,0.67432342,947.96,946.28,0.18355205]
[1768434054789,0.67432342,947.95,946.28,0.18355205]
[1768434054991,0.67432342,947.94,946.28,0.18355205]
[1768434055189,0.67432342,947.93,946.28,0.18355205]
[1768434055393,0.67432342,947.92,946.28,0.18355205]
[1768434055591,0.67432342,947.91,946.28,0.18355205]
[1768434055790,0.67432342,947.9,946.28,0.18355205]
[1768434056092,0.67432342,947.89,946.28,0.18355205]
[1768434056292,0.67432342,947.88,946.28,0.18355205]
[1768434056490,0.67432342,947.87,946.28,0.18355205]
[1768434056794,0.67432342,947.86,946.28,0.18355205]
[1768434056993,0.67432342,947.85,946.28,0.18355205]
[1768434057294,0.67432342,947.84,946.28,0.18355205]
[1768434057494,0.67432342,947.83,946.28,0.18355205]
[1768434057695,0.67432342,947.82,946.28,0.18355205]
[1768434057896,0.67432342,947.81,946.28,0.18355205]
[1768434058097,0.67432342,947.8,946.28,0.18355205]
[1768434058395,0.67432342,947.79,946.28,0.18355205]
[1768434058596,0.67432342,947.78,946.28,0.18355205]
[1768434058796,0.67432342,947.77,946.28,0.18355205]
[1768434058996,0.67432342,947.76,946.28,0.18355205]
[1768434059196,1.835,948.2,946.28,0.18355205]
[1768434059197,0.67432342,947.75,946.28,0.18355205]
[1768434059398,0.67432342,947.74,946.28,0.18355205]
[1768434059596,0.67432342,947.73,946.28,0.18355205]
[1768434059793,0.67432342,947.72,946.28,0.18355205]
[1768434059996,0.67432342,947.71,946.28,0.18355205]
[1768434060197,0.67382681,947.7,946.28,0.18355205]
[1768434060493,1.835,948.2,946.28,0.18355205]
[1768434060697,0.67382681,948.19,946.28,0.18355205]
[1768434060996,0.67382681,948.18,946.28,0.18355205]
[1768434061196,0.67382681,948.17,946.28,0.18355205]
[1768434061393,0.67382681,948.16,946.28,0.18355205]
[1768434061597,0.67382681,948.15,946.28,0.18355205]
[1768434061796,0.67382681,948.14,946.28,0.18355205]
[1768434061996,0.67382681,948.13,946.28,0.18355205]
[1768434062293,0.67382681,948.12,946.28,0.18355205]
[1768434062493,0.67382681,948.11,946.28,0.18355205]
[1768434062697,0.67382681,948.1,946.28,0.18355205]
[1768434062893,0.67382681,948.09,946.28,0.18355205]
[1768434063094,0.67382681,948.08,946.28,0.18355205]
[1768434063398,0.67382681,948.07,946.28,0.18355205]
[1768434063599,0.67382681,948.06,946.28,0.18355205]
[1768434063798,0.67382681,948.05,946.28,0.18355205]
[1768434064099,0.67382681,948.04,946.28,0.18355205]
[1768434064299,0.67382681,948.03,946.28,0.18355205]
[1768434064596,0.67382681,948.02,946.28,0.18355205]
[1768434064795,0.67382681,948.01,946.28,0.18355205]
[1768434065000,0.67382681,948.0,946.28,0.18355205]
[1768434065300,0.67382681,947.99,945.61,2.61605998]
[1768434065500,1.835,948.2,946.38,0.18366733]
[1768434065501,0.67382681,947.98,946.38,0.18366733]
[1768434065702,0.67382681,947.97,945.61,2.61605998]
[1768434065902,0.67382681,947.96,946.44,0.1836683]
[1768434066201,1.835,948.2,945.27,3.66248398]
[1768434066202,0.67382681,947.95,945.6,2.61605998]
[1768434066497,0.67382681,947.94,945.6,2.61605998]
[1768434066700,0.67382681,947.93,945.59,2.61605998]
[1768434066898,0.67382681,947.92,945.59,2.61605998]
[1768434067100,0.67382681,947.91,945.59,2.61605998]
[1768434067401,0.67382681,947.9,946.17,0.1836683]
[1768434067601,0.67382681,947.89,946.17,0.1836683]
[1768434067800,0.67382681,947.88,946.17,0.1836683]
[1768434068100,0.67382681,947.87,946.17,0.1836683]
[1768434068296,0.67382681,947.86,946.17,0.1836683]
[1768434068497,0.67382681,947.85,946.17,0.1836683]
[1768434068694,0.67382681,947.84,946.17,0.1836683]
[1768434068896,0.67382681,947.83,946.17,0.1836683]
[1768434069199,0.67382681,947.82,946.17,0.1836683]
[1768434069399,1.835,948.2,946.17,0.1836683]
[1768434069400,0.67382681,947.81,946.17,0.1836683]
[1768434069695,0.67382681,947.8,946.17,0.1836683]
[1768434069899,0.67382681,947.79,946.17,0.1836683]
[1768434070100,0.67382681,947.78,946.17,0.1836683]
[1768434070301,0.67382681,947.77,946.17,0.1836683]
[1768434070600,0.67382681,947.76,946.17,0.1836683]
[1768434070801,0.67382681,947.75,946.17,0.1836683]
[1768434071000,0.67382681,947.74,946.17,0.1836683]
[1768434071197,0.67382681,947.73,946.17,0.1836683]
[1768434071501,0.67382681,947.72,946.17,0.1836683]
[1768434071800,0.67382681,947.71,946.17,0.1836683]
[1768434072000,0.67382681,947.7,946.17,0.1836683]
[1768434072197,0.67382681,947.69,946.17,0.1836683]
[1768434072400,0.67382681,947.68,946.17,0.1836683]
[1768434072700,0.67382681,947.67,946.17,0.1836683]
[1768434072900,0.67382681,947.66,946.17,0.1836683]
[1768434073100,0.67382681,947.65,946.17,0.1836683]
[1768434073300,0.67382681,947.64,946.17,0.1836683]
[1768434073501,0.67382681,947.63,946.17,0.1836683]
[1768434073801,0.67382681,947.62,946.17,0.1836683]
[1768434073999,0.67382681,947.61,946.17,0.1836683]
[1768434074199,0.67382681,947.6,946.17,0.1836683]
[1768434074403,0.67382681,947.59,946.17,0.1836683]
[1768434074604,0.67382681,947.58,946.17,0.1836683]
[1768434074801,0.67382681,947.57,946.17,0.1836683]
[1768434075000,1.835,948.2,946.17,0.1836683]
[1768434075200,0.67495397,948.19,946.17,0.1836683]
[1768434075405,0.67495397,948.18,946.17,0.1836683]
[1768434075602,0.67495397,948.17,946.17,0.1836683]
[1768434075904,1.835,948.2,946.17,0.1836683]
[1768434075905,0.67495397,948.16,946.17,0.1836683]
[1768434076100,0.67495397,948.15,946.17,0.1836683]
[1768434076302,0.67495397,948.14,946.17,0.1836683]
[1768434076505,0.67495397,948.13,946.17,0.1836683]
[1768434076701,0.67495397,948.12,946.17,0.1836683]
[1768434076904,0.67495397,948.11,946.17,0.1836683]
[1768434077105,0.67495397,948.1,946.17,0.1836683]
[1768434077405,0.67495397,948.09,946.17,0.1836683]
[1768434077601,0.67495397,948.08,946.17,0.1836683]
[1768434077804,0.67495397,948.07,946.17,0.1836683]
[1768434078000,0.67495397,948.06,946.17,0.1836683]
[1768434078302,0.67495397,948.05,946.17,0.1836683]
[1768434078504,0.67495397,948.04,946.17,0.1836683]
[1768434078700,0.67495397,948.03,946.17,0.1836683]
[1768434078901,1.835,948.2,946.17,0.1836683]
[1768434078902,0.67495397,948.02,946.17,0.1836683]
[1768434079103,0.67495397,948.01,946.17,0.1836683]
[1768434079303,0.67495397,948.0,946.17,0.1836683]
[1768434079507,0.67495397,947.99,946.17,0.1836683]
[1768434079706,0.67495397,947.98,946.17,0.1836683]
[1768434079907,0.67495397,947.97,946.17,0.1836683]
[1768434080107,0.67495397,947.96,946.17,0.1836683]
[1768434080307,0.67495397,947.95,946.17,0.1836683]
[1768434080507,0.67495397,947.94,946.17,0.1836683]
[1768434080809,0.67495397,947.93,946.17,0.1836683]
[1768434081009,0.67495397,947.92,946.17,0.1836683]
[1768434081210,0.67495397,947.91,946.17,0.1836683]
[1768434081409,0.67495397,947.9,946.17,0.1836683]
[1768434081606,0.67495397,947.89,946.17,0.1836683]
[1768434081811,0.67495397,947.88,946.17,0.1836683]
[1768434082011,0.67495397,947.87,946.17,0.1836683]
[1768434082306,0.67495397,947.86,946.17,0.1836683]
[1768434082508,0.67495397,947.85,946.17,0.1836683]
[1768434082811,0.67495397,947.84,946.17,0.1836683]
[1768434083011,0.67495397,947.83,946.17,0.1836683]
[1768434083208,1.835,948.2,946.17,0.1836683]
[1768434083209,0.67495397,947.82,946.17,0.1836683]
[1768434083407,0.67495397,947.81,946.17,0.1836683]
[1768434083707,0.67495397,947.8,946.17,0.1836683]
[1768434083911,0.67495397,947.79,946.17,0.1836683]
[1768434084112,0.67495397,947.78,946.17,0.1836683]
[1768434084408,0.67495397,947.77,946.17,0.1836683]
[1768434084614,0.67495397,947.76,946.17,0.1836683]
[1768434084913,0.67495397,947.75,946.17,0.1836683]
[1768434085114,0.67495397,947.74,946.17,0.1836683]
[1768434085313,0.67495397,947.73,946.17,0.1836683]
[1768434085515,0.67495397,947.72,946.17,0.1836683]
[1768434085818,0.67495397,947.71,946.17,0.1836683]
[1768434086114,0.67495397,947.7,946.17,0.1836683]
[1768434086317,0.67495397,947.69,946.17,0.1836683]
[1768434086520,0.67495397,947.68,946.17,0.1836683]
[1768434086717,0.67495397,947.67,946.17,0.1836683]
[1768434087017,1.835,948.2,946.17,0.1836683]
[1768434087018,0.67495397,947.66,946.17,0.1836683]
[1768434087218,0.67495397,947.65,946.17,0.1836683]
[1768434087417,0.67495397,947.64,946.17,0.1836683]
[1768434087620,0.67495397,947.63,946.17,0.1836683]
[1768434087917,0.67495397,947.62,946.17,0.1836683]
[1768434088121,0.67495397,947.61,946.17,0.1836683]
[1768434088320,0.67495397,947.6,946.17,0.1836683]
[1768434088617,0.67495397,947.59,946.17,0.1836683]
[1768434088818,0.67495397,947.58,946.17,0.1836683]
[1768434089021,0.67495397,947.57,946.17,0.1836683]
[1768434089221,0.67495397,947.56,946.17,0.1836683]
[1768434089416,0.67495397,947.55,946.17,0.1836683]
[1768434089618,0.67495397,947.54,946.17,0.1836683]
[1768434089821,0.67495397,947.53,946.17,0.1836683]
[1768434090022,0.67495397,947.52,946.17,0.1836683]
[1768434090324,0.67495397,947.51,946.17,0.1836683]
[1768434090516,0.67495397,947.5,946.17,0.1836683]
[1768434090722,0.67495397,947.49,946.17,0.1836683]
[1768434090919,0.67495397,947.48,946.17,0.1836683]
[1768434091219,0.67495397,947.47,946.17,0.1836683]
[1768434091420,0.67495397,947.46,946.17,0.1836683]
[1768434091724,0.67495397,947.45,946.17,0.1836683]
[1768434091923,0.67495397,947.44,946.17,0.1836683]
[1768434092120,0.67495397,947.43,946.17,0.1836683]
[1768434092322,0.67495397,947.42,946.17,0.1836683]
[1768434092519,0.67495397,947.41,946.17,0.1836683]
[1768434092721,0.67495397,947.4,946.17,0.1836683]
[1768434092920,0.67495397,947.39,946.17,0.1836683]
[1768434093120,0.67495397,947.38,946.17,0.1836683]
[1768434093320,0.67495397,947.37,946.17,0.1836683]
[1768434093523,1.835,948.2,946.17,0.1836683]
[1768434093820,0.67577516,948.19,946.17,0.1836683]
[1768434094020,0.67577516,948.18,946.17,0.1836683]
[1768434094220,0.67577516,948.17,946.17,0.1836683]
[1768434094420,0.67577516,948.16,946.17,0.1836683]
[1768434094620,0.67577516,948.15,946.17,0.1836683]
[1768434094820,0.67577516,948.14,946.17,0.1836683]
[1768434095020,0.67577516,948.13,946.17,0.1836683]
[1768434095223,0.67577516,948.12,946.17,0.1836683]
[1768434095420,0.67577516,948.11,946.17,0.1836683]
[1768434095625,0.67577516,948.1,946.17,0.1836683]
[1768434095825,0.67577516,948.09,946.17,0.1836683]
[1768434096020,0.67577516,948.08,946.17,0.1836683]
[1768434096220,0.67577516,948.07,946.17,0.1836683]
[1768434096525,0.67577516,948.06,946.17,0.1836683]
[1768434096720,0.67577516,948.05,946.17,0.1836683]
[1768434096926,0.67577516,948.04,946.17,0.1836683]
[1768434097126,0.67577516,948.03,946.17,0.1836683]
[1768434097322,0.67577516,948.02,946.17,0.1836683]
[1768434097527,0.67577516,948.01,946.17,0.1836683]
[1768434097721,0.67577516,948.0,946.17,0.1836683]
[1768434097926,0.67577516,947.99,946.17,0.1836683]
[1768434098127,0.67577516,947.98,946.17,0.1836683]
[1768434098327,0.67577516,947.97,946.17,0.1836683]
[1768434098624,0.67577516,947.96,946.17,0.1836683]
[1768434098923,0.67577516,947.95,946.17,0.1836683]
[1768434099124,0.67577516,947.94,946.17,0.1836683]
[1768434099326,0.67577516,947.93,946.17,0.1836683]
[1768434099524,0.67577516,947.92,946.17,0.1836683]
[1768434099724,0.67577516,947.91,946.17,0.1836683]
[1768434099927,0.67577516,947.9,946.17,0.1836683]
[1768434100125,0.67577516,947.89,946.17,0.1836683]
[1768434100325,0.67577516,947.88,946.17,0.1836683]
[1768434100625,0.67577516,947.87,946.17,0.1836683]
[1768434100828,0.67577516,947.86,946.17,0.1836683]
[1768434101024,0.67577516,947.85,946.17,0.1836683]
[1768434101228,0.67577516,947.84,946.17,0.1836683]
[1768434101429,0.67577516,947.83,946.17,0.1836683]
[1768434101630,0.67577516,947.82,946.17,0.1836683]
[1768434101824,0.67577516,947.81,946.17,0.1836683]
[1768434102129,0.67577516,947.8,946.17,0.1836683]
[1768434102326,0.67577516,947.79,946.17,0.1836683]
[1768434102630,0.67577516,947.78,946.17,0.1836683]
[1768434102830,0.67577516,947.77,946.17,0.1836683]
[1768434103025,0.67577516,947.76,946.17,0.1836683]
[1768434103227,0.67577516,947.75,946.17,0.1836683]
[1768434103432,0.67577516,947.74,946.17,0.1836683]
[1768434103630,0.67577516,947.73,946.17,0.1836683]
[1768434103832,0.67577516,947.72,946.17,0.1836683]
[1768434104033,0.67577516,947.71,946.17,0.1836683]
[1768434104232,0.67577516,947.7,946.17,0.1836683]
[1768434104428,0.67577516,947.69,946.17,0.1836683]
[1768434104633,0.67577516,947.68,946.17,0.1836683]
[1768434104833,0.67577516,947.67,946.17,0.1836683]
[1768434105031,0.67577516,947.66,946.17,0.1836683]
[1768434105234,0.67577516,947.65,946.17,0.1836683]
[1768434105434,0.67577516,947.64,946.17,0.1836683]
[1768434105633,0.67577516,947.63,946.17,0.1836683]
[1768434105835,0.67577516,947.62,946.17,0.1836683]
[1768434106036,0.67577516,947.61,946.17,0.1836683]
[1768434106232,0.67577516,947.6,946.17,0.1836683]
[1768434106536,0.67577516,947.59,946.17,0.1836683]
[1768434106736,0.67577516,947.58,946.17,0.1836683]
[1768434106938,0.67577516,947.57,946.17,0.1836683]
[1768434107139,0.67577516,947.56,946.17,0.1836683]
[1768434107339,0.67577516,947.55,946.17,0.1836683]
[1768434107537,0.67577516,947.54,946.17,0.1836683]
[1768434107739,0.67577516,947.53,946.17,0.1836683]
[1768434107940,0.67577516,947.52,946.17,0.1836683]
[1768434108136,0.67577516,947.51,946.17,0.1836683]
[1768434108435,0.67577516,947.5,946.17,0.1836683]
[1768434108640,0.67577516,947.49,946.17,0.1836683]
[1768434108840,0.67577516,947.48,946.17,0.1836683]
[1768434109136,0.67577516,947.47,946.17,0.1836683]
[1768434109341,0.67577516,947.46,946.17,0.1836683]
[1768434109540,0.67577516,947.45,946.17,0.1836683]
[1768434109740,0.67577516,947.44,946.17,0.1836683]
[1768434109941,0.67577516,947.43,946.17,0.1836683]
[1768434110244,0.67577516,947.42,946.17,0.1836683]
[1768434110542,0.67577516,947.41,946.17,0.1836683]
[1768434110739,0.67577516,947.4,946.17,0.1836683]
[1768434110940,0.67577516,947.39,946.17,0.1836683]
[1768434111142,0.67577516,947.38,946.17,0.1836683]
[1768434111441,0.67577516,947.37,946.17,0.1836683]
[1768434111639,0.67577516,947.36,946.17,0.1836683]
[1768434111843,0.67577516,947.35,946.17,0.1836683]
[1768434112039,0.67577516,947.34,946.17,0.1836683]
[1768434112343,0.67577516,947.33,946.17,0.1836683]
[1768434112540,0.67577516,947.32,946.17,0.1836683]
[1768434112744,2.296,947.34,946.17,0.1836683]
[1768434112940,0.67560244,947.33,946.17,0.1836683]
[1768434113241,0.67560244,947.32,946.17,0.1836683]
[1768434113438,2.296,947.34,946.17,0.1836683]
[1768434113639,0.67559551,947.33,946.17,0.1836683]
[1768434113838,0.67559551,947.32,946.17,0.1836683]
[1768434114039,2.296,947.34,946.17,0.1836683]
[1768434114245,0.67559551,947.33,946.17,0.1836683]
[1768434114445,0.67559551,947.32,946.17,0.1836683]
[1768434114640,2.296,947.34,946.17,0.1836683]
[1768434114942,0.67559061,947.33,946.17,0.1836683]
[1768434115140,0.67559061,947.32,946.17,0.1836683]
[1768434115343,2.296,947.34,946.17,0.1836683]
[1768434115542,0.67563315,947.33,946.17,0.1836683]
[1768434115741,0.67563315,947.32,946.17,0.1836683]
[1768434115942,2.296,947.34,946.17,0.1836683]
[1768434116142,0.67563315,947.33,946.17,0.1836683]
[1768434116344,0.67563315,947.32,946.17,0.1836683]
[1768434116545,0.67563315,947.31,946.17,0.1836683]
[1768434116840,2.296,947.34,946.17,0.1836683]
[1768434117141,0.67568145,947.33,946.17,0.1836683]
[1768434117342,0.67568145,947.32,946.17,0.1836683]
[1768434117547,0.67568145,947.31,946.17,0.1836683]
[1768434117747,2.296,947.34,946.17,0.1836683]
[1768434117948,0.67573692,947.33,946.17,0.1836683]
[1768434118248,0.67573692,947.32,946.17,0.1836683]
[1768434118547,0.67573692,947.31,946.17,0.1836683]
[1768434118748,2.296,947.34,946.17,0.1836683]
[1768434119048,0.67579981,947.33,946.17,0.1836683]
[1768434119243,0.67579981,947.32,946.17,0.1836683]
[1768434119445,0.67579981,947.31,946.17,0.1836683]
[1768434119747,0.67579981,947.3,946.17,0.1836683]
[1768434119944,2.296,947.34,946.17,0.1836683]
[1768434120145,0.67587115,947.33,946.17,0.1836683]
[1768434120348,0.67587115,947.32,946.17,0.1836683]
[1768434120547,0.67587115,947.31,946.17,0.1836683]
[1768434120746,0.67587115,947.3,946.17,0.1836683]
[1768434120947,2.296,947.34,946.17,0.1836683]
[1768434121146,0.67594012,947.33,946.17,0.1836683]
[1768434121348,0.67594012,947.32,946.17,0.1836683]
[1768434121651,0.67594012,947.31,946.17,0.1836683]
[1768434121846,0.67594012,947.3,946.17,0.1836683]
[1768434122047,0.67594012,947.29,946.17,0.1836683]
[1768434122246,2.296,947.34,946.17,0.1836683]
[1768434122451,0.67613815,947.33,946.17,0.1836683]
[1768434122649,0.67613815,947.32,946.17,0.1836683]
[1768434122852,0.67613815,947.31,946.17,0.1836683]
[1768434123049,0.67613815,947.3,946.17,0.1836683]
[1768434123252,0.67613815,947.29,946.17,0.1836683]
[1768434123450,0.67613815,947.28,946.17,0.1836683]
[1768434123655,2.296,947.34,946.17,0.1836683]
[1768434123855,0.67626082,947.33,946.17,0.1836683]
[1768434124054,0.67626082,947.32,946.17,0.1836683]
[1768434124356,0.67626082,947.31,946.17,0.1836683]
[1768434124555,0.67626082,947.3,946.17,0.1836683]
[1768434124852,0.67626082,947.29,946.17,0.1836683]
[1768434125055,0.67626082,947.28,946.17,0.1836683]
[1768434125357,0.67626082,947.27,946.17,0.1836683]
[1768434125555,0.67626082,947.26,946.17,0.1836683]
[1768434125757,2.296,947.34,946.17,0.1836683]
[1768434126056,0.67655616,947.33,946.17,0.1836683]
[1768434126350,0.67655616,947.32,946.17,0.1836683]
[1768434126556,0.67655616,947.31,946.17,0.1836683]
[1768434126754,0.67655616,947.3,946.17,0.1836683]
[1768434126953,0.67655616,947.29,946.17,0.1836683]
[1768434127156,0.67655616,947.28,946.17,0.1836683]
[1768434127358,0.67655616,947.27,946.17,0.1836683]
[1768434127652,0.67655616,947.26,946.17,0.1836683]
[1768434127855,0.67655616,947.25,946.17,0.1836683]
[1768434128155,2.296,947.34,946.17,0.1836683]
[1768434128356,0.67685682,947.33,946.17,0.1836683]
[1768434128552,0.67685682,947.32,946.17,0.1836683]
[1768434128758,0.67685682,947.31,946.17,0.1836683]